[Event "GER-ch Youth-U10 2022"]
[Site "Willingen"]
[Date "2022.06.11"]
[Round "11.23"]
[White "Classen, Marnin"]
[Black "Hellriegel, Hannes"]
[Result "1/2-1/2"]
[ECO "C70"]
[WhiteElo "1168"]
[BlackElo "1335"]
[Annotator "NA RC COMBH"]
[PlyCount "97"]
[EventDate "2022.06.05"]
[EventType "swiss"]
[EventRounds "11"]
[EventCountry "GER"]
[SourceTitle "playchess.com"]
[Source "ChessBase"]
[SourceQuality "1"]
[TimeControl "40/4500+30:900+30"]

1. e4 {[%emt 0:00:04]} e5 {[%emt 0:00:03]} 2. Nf3 {[%emt 0:00:16]} Nc6 {[%emt 0:00:07]} 3. Bb5 {[%emt 0:00:13]} a6 {[%emt 0:00:14]} 4. Ba4 {[%emt 0:00:10]} Nf6 {[%emt 0:00:18]} 5. O-O {[%emt 0:01:02]} Bc5 {[%emt 0:00:59]} 6. h3 {[%emt 0:01:27]} O-O {[%emt 0:00:34]} 7. Re1 {[%emt 0:00:15]} d6 {[%emt 0:00:55]} 8. c3 {[%emt 0:00:21]} Be6 {[%emt 0:01:29]} 9. d4 {[%emt 0:00:33]} exd4 {[%emt 0:00:23]} 10. cxd4 {[%emt 0:00:33]} b5 {[%emt 0:01:20]} 11. dxc5 {[%emt 0:02:51]} bxa4 {[%emt 0:00:44]} 12. cxd6 {[%emt 0:01:30]} cxd6 {[%emt 0:00:33]} 13. Qxa4 {[%emt 0:00:19]} Bd7 {[%emt 0:00:38]} 14. Qd1 {[%emt 0:00:30]} Be6 {[%emt 0:03:05]} 15. Nc3 {[%emt 0:01:44]} Qd7 {[%emt 0:03:26]} 16. Bg5 {[%emt 0:00:36]} Ne8 {[%emt 0:01:06]} 17. Qd2 {[%emt 0:01:43]} f6 {[%emt 0:00:59]} 18. Bf4 {[%emt 0:03:25]} Ne5 {[%emt 0:01:20]} 19. Nxe5 {[%emt 0:00:37]} fxe5 {[%emt 0:01:35]} 20. Bg3 {[%emt 0:01:38]} Qb7 {[%emt 0:05:18]} 21. Rad1 {[%emt 0:01:21]} Rb8 {[%emt 0:01:03]} 22. b3 {[%emt 0:05:32]} Rc8 {[%emt 0:04:05]} 23. Re2 {[%emt 0:02:32]} Qb4 {[%emt 0:01:24]} 24. Nd5 {[%emt 0:03:32]} Qb7 {[%emt 0:01:24]} 25. Bh4 {[%emt 0:03:16]} Bxd5 {[%emt 0:00:31]} 26. Qxd5+ {[%emt 0:00:15]} Qxd5 {[%emt 0:00:15]} 27. Rxd5 {[%emt 0:00:21]} Rc6 {[%emt 0:00:51]} 28. Red2 {[%emt 0:00:31]} Kf7 {[%emt 0:02:52]} 29. f3 {[%emt 0:00:19]} Ke6 {[%emt 0:00:52]} 30. Kf2 {[%emt 0:00:56]} Nc7 {[%emt 0:00:41]} 31. R5d3 {[%emt 0:02:04]} Nb5 {[%emt 0:01:38]} 32. Ke1 {[%emt 0:00:39]} Nd4 {[%emt 0:00:46]} 33. Bf2 {[%emt 0:01:00]} Rc1+ {[%emt 0:02:37]} 34. Rd1 {[%emt 0:02:47]} Rxd1+ {[%emt 0:00:15]} 35. Kxd1 {[%emt 0:01:05]} Nb5 {[%emt 0:00:21]} 36. a4 {[%emt 0:01:47]} Nc7 {[%emt 0:00:45]} 37. Bb6 {[%emt 0:01:14]} Ne8 {[%emt 0:00:57]} 38. Kd2 {[%emt 0:00:50]} Rf6 {[%emt 0:01:20]} 39. Ba5 {[%emt 0:00:41]} Rg6 {[%emt 0:00:30]} 40. Kc3 {[%emt 0:00:23]} Rxg2 {[%emt 0:00:54]} 41. b4 {[%emt 0:15:51]} Ra2 {[%emt 0:15:59]} 42. Kb3 {[%emt 0:00:56]} Ra1 {[%emt 0:00:33]} 43. Rd2 {[%emt 0:00:26]} Kd7 {[%emt 0:01:03]} 44. Rg2 {[%emt 0:00:32]} g6 {[%emt 0:00:38]} 45. Bb6 {[%emt 0:00:23]} Kc6 {[%emt 0:00:38]} 46. Be3 {[%emt 0:00:22]} Nc7 {[%emt 0:01:08]} 47. Rc2+ {[%emt 0:00:18]} Kb7 {[%emt 0:00:21]} 48. Rd2 {[%emt 0:01:00]} Kc6 {[%emt 0:00:18]} 49. Rc2+ {[%emt 0:00:15]} 1/2-1/2

[Event "GER-ch Youth-U10 2022"]
[Site "Willingen"]
[Date "2022.06.11"]
[Round "11.25"]
[White "Andersen, Jonatan M"]
[Black "Antonius, Richard-Malte"]
[Result "1/2-1/2"]
[ECO "B33"]
[WhiteElo "1857"]
[BlackElo "1106"]
[Annotator "NA RC COMBH"]
[PlyCount "104"]
[EventDate "2022.06.05"]
[EventType "swiss"]
[EventRounds "11"]
[EventCountry "GER"]
[SourceTitle "playchess.com"]
[Source "ChessBase"]
[SourceQuality "1"]
[TimeControl "40/4500+30:900+30"]

1. e4 {[%emt 0:00:02]} c5 {[%emt 0:00:03]} 2. Nf3 {[%emt 0:00:08]} Nc6 {[%emt 0:00:08]} 3. d4 {[%emt 0:00:07]} cxd4 {[%emt 0:00:07]} 4. Nxd4 {[%emt 0:00:05]} Nf6 {[%emt 0:00:05]} 5. Nc3 {[%emt 0:00:09]} e5 {[%emt 0:00:06]} 6. Ndb5 {[%emt 0:02:56]} d6 {[%emt 0:00:02]} 7. Bg5 {[%emt 0:00:13]} a6 {[%emt 0:00:04]} 8. Na3 {[%emt 0:00:08]} Be6 {[%emt 0:00:14]} 9. Qf3 {[%emt 0:00:26]} h6 {[%emt 0:00:56]} 10. Bxf6 {[%emt 0:00:07]} gxf6 {[%emt 0:00:10]} 11. Rd1 {[%emt 0:01:17]} b5 {[%emt 0:00:53]} 12. Nd5 {[%emt 0:00:16]} Bxd5 {[%emt 0:00:12]} 13. exd5 {[%emt 0:00:08]} Nb8 {[%emt 0:00:22]} 14. c3 {[%emt 0:00:21]} Bg7 {[%emt 0:00:47]} 15. Bd3 {[%emt 0:00:38]} Nd7 {[%emt 0:01:44]} 16. O-O {[%emt 0:00:31]} Rc8 {[%emt 0:02:18]} 17. Nc2 {[%emt 0:00:26]} Qc7 {[%emt 0:03:04]} 18. Ne3 {[%emt 0:00:16]} Nc5 {[%emt 0:01:34]} 19. Bc2 {[%emt 0:01:11]} Nd7 {[%emt 0:01:44]} 20. Qg3 {[%emt 0:00:47]} Bf8 {[%emt 0:00:26]} 21. Nf5 {[%emt 0:00:14]} Qc4 {[%emt 0:02:18]} 22. Bb3 {[%emt 0:01:58]} Qe2 {[%emt 0:02:36]} 23. Rb1 {[%emt 0:00:44]} Qh5 {[%emt 0:00:17]} 24. Ne3 {[%emt 0:02:07]} Qg6 {[%emt 0:00:53]} 25. Bc2 {[%emt 0:00:32]} Qxg3 {[%emt 0:00:22]} 26. fxg3 {[%emt 0:00:08]} Nb6 {[%emt 0:01:52]} 27. Rxf6 {[%emt 0:00:31]} Rc5 {[%emt 0:00:56]} 28. Rd1 {[%emt 0:00:27]} Be7 {[%emt 0:00:32]} 29. Rff1 {[%emt 0:00:19]} Bg5 {[%emt 0:00:16]} 30. Nf5 {[%emt 0:00:59]} Kd7 {[%emt 0:01:39]} 31. Bb3 {[%emt 0:00:39]} a5 {[%emt 0:03:49]} 32. a3 {[%emt 0:00:17]} a4 {[%emt 0:00:08]} 33. Ba2 {[%emt 0:00:09]} Nc4 {[%emt 0:00:31]} 34. Bxc4 {[%emt 0:00:10]} Rxc4 {[%emt 0:00:26]} 35. h4 {[%emt 0:00:26]} Be7 {[%emt 0:00:21]} 36. Nxe7 {[%emt 0:00:17]} Kxe7 {[%emt 0:00:10]} 37. Kf2 {[%emt 0:00:28]} Rg8 {[%emt 0:00:11]} 38. Rd3 {[%emt 0:00:20]} Rc5 {[%emt 0:01:25]} 39. Kf3 {[%emt 0:00:37]} h5 {[%emt 0:00:34]} 40. Re1 {[%emt 0:00:38]} Rc4 {[%emt 0:00:35]} 41. Re4 {[%emt 0:15:31]} Rxe4 {[%emt 0:15:15]} 42. Kxe4 {[%emt 0:00:07]} Rg4+ {[%emt 0:00:10]} 43. Kf3 {[%emt 0:00:08]} Rg8 {[%emt 0:00:08]} 44. Re3 {[%emt 0:00:20]} f5 {[%emt 0:00:18]} 45. Kf2 {[%emt 0:00:37]} Kf6 {[%emt 0:00:30]} 46. Re2 {[%emt 0:00:39]} Rg7 {[%emt 0:00:41]} 47. Rc2 {[%emt 0:00:26]} Rc7 {[%emt 0:00:10]} 48. Ke3 {[%emt 0:00:12]} Rc5 {[%emt 0:00:15]} 49. Rd2 {[%emt 0:00:11]} Kg6 {[%emt 0:00:28]} 50. Ke2 {[%emt 0:00:17]} Kf6 {[%emt 0:00:08]} 51. Ke3 {[%emt 0:01:28]} Kg6 {[%emt 0:00:07]} 52. Rd3 {[%emt 0:00:32]} Kf6 {[%emt 0:00:51]} 1/2-1/2

[Event "GER-ch Youth-U10 2022"]
[Site "Willingen"]
[Date "2022.06.11"]
[Round "11.27"]
[White "Schmidt, Jossip"]
[Black "Rinke, Alexander"]
[Result "0-1"]
[ECO "A48"]
[WhiteElo "1085"]
[BlackElo "1292"]
[Annotator "NA RC COMBH"]
[PlyCount "106"]
[EventDate "2022.06.05"]
[EventType "swiss"]
[EventRounds "11"]
[EventCountry "GER"]
[SourceTitle "playchess.com"]
[Source "ChessBase"]
[SourceQuality "1"]
[TimeControl "40/4500+30:900+30"]

1. d4 {[%emt 0:00:04]} Nf6 {[%emt 0:00:06]} 2. Nf3 {[%emt 0:00:14]} g6 {[%emt 0:00:10]} 3. Bf4 {[%emt 0:00:07]} Bg7 {[%emt 0:00:08]} 4. e3 {[%emt 0:00:09]} O-O {[%emt 0:00:11]} 5. Bd3 {[%emt 0:00:06]} d6 {[%emt 0:00:06]} 6. c3 {[%emt 0:00:17]} Nbd7 {[%emt 0:00:36]} 7. Qe2 {[%emt 0:00:15]} Qe8 {[%emt 0:03:47]} 8. O-O {[%emt 0:00:13]} e5 {[%emt 0:00:11]} 9. Bg3 {[%emt 0:00:17]} e4 {[%emt 0:00:20]} 10. Bc2 {[%emt 0:00:23]} exf3 {[%emt 0:00:21]} 11. Qxf3 {[%emt 0:00:07]} Nb6 {[%emt 0:04:23]} 12. Nd2 {[%emt 0:00:26]} Rb8 {[%emt 0:01:52]} 13. Bh4 {[%emt 0:00:21]} Qe6 {[%emt 0:07:58]} 14. h3 {[%emt 0:01:29]} Nh5 {[%emt 0:03:12]} 15. g4 {[%emt 0:00:41]} Bf6 {[%emt 0:07:23]} 16. gxh5 {[%emt 0:01:04]} Bxh4 {[%emt 0:00:12]} 17. Kh2 {[%emt 0:01:15]} Qd5 {[%emt 0:01:59]} 18. e4 {[%emt 0:01:07]} Qxh5 {[%emt 0:00:57]} 19. Qxh5 {[%emt 0:00:46]} gxh5 {[%emt 0:00:11]} 20. Rg1+ {[%emt 0:00:26]} Kh8 {[%emt 0:00:10]} 21. Rg2 {[%emt 0:00:28]} Rg8 {[%emt 0:00:58]} 22. Rag1 {[%emt 0:00:17]} Rxg2+ {[%emt 0:00:10]} 23. Rxg2 {[%emt 0:00:09]} Be6 {[%emt 0:00:17]} 24. d5 {[%emt 0:00:08]} Bd7 {[%emt 0:00:16]} 25. Nf3 {[%emt 0:00:21]} Bf6 {[%emt 0:00:27]} 26. Kh1 {[%emt 0:00:32]} Bxh3 {[%emt 0:00:59]} 27. Rg3 {[%emt 0:01:07]} Bg4 {[%emt 0:00:17]} 28. Nd2 {[%emt 0:01:23]} Be5 {[%emt 0:02:18]} 29. Rg1 {[%emt 0:00:36]} Rg8 {[%emt 0:01:00]} 30. f3 {[%emt 0:02:45]} Bd7 {[%emt 0:01:41]} 31. Rf1 {[%emt 0:00:52]} Bf4 {[%emt 0:05:16]} 32. Nb1 {[%emt 0:01:01]} Nc4 {[%emt 0:00:08]} 33. Bb3 {[%emt 0:00:56]} Nxb2 {[%emt 0:01:09]} 34. e5 {[%emt 0:01:11]} Ba4 {[%emt 0:00:44]} 35. Bxa4 {[%emt 0:00:17]} Nxa4 {[%emt 0:00:00]} 36. e6 {[%emt 0:00:42]} fxe6 {[%emt 0:00:18]} 37. dxe6 {[%emt 0:00:12]} Re8 {[%emt 0:00:01]} 38. Re1 {[%emt 0:00:23]} Be5 {[%emt 0:00:07]} 39. Na3 {[%emt 0:00:37]} Bxc3 {[%emt 0:00:30]} 40. Re3 {[%emt 0:00:18]} a6 {[%emt 0:00:44]} 41. Nb1 {[%emt 0:15:34]} Be5 {[%emt 0:15:22]} 42. Kg2 {[%emt 0:01:38]} Nc5 {[%emt 0:00:11]} 43. f4 {[%emt 0:00:32]} Bxf4 {[%emt 0:00:15]} 44. Rh3 {[%emt 0:00:13]} Nxe6 {[%emt 0:00:23]} 45. Rxh5 {[%emt 0:01:43]} Bg5 {[%emt 0:00:17]} 46. Kg3 {[%emt 0:00:36]} c5 {[%emt 0:00:16]} 47. Nc3 {[%emt 0:00:06]} b5 {[%emt 0:00:11]} 48. a3 {[%emt 0:00:07]} b4 {[%emt 0:00:10]} 49. axb4 {[%emt 0:00:07]} cxb4 {[%emt 0:00:00]} 50. Nb1 {[%emt 0:00:00]} a5 {[%emt 0:00:00]} 51. Rh1 {[%emt 0:00:26]} a4 {[%emt 0:00:03]} 52. Rd1 {[%emt 0:00:42]} a3 {[%emt 0:00:13]} 53. Rd3 {[%emt 0:01:22]} a2 {[%emt 0:00:13]} 0-1